Workbook

Sheet Goal Seek
A1: CTC | B1: Basic | C1: HRA | D1: TA | E1: CCA | F1: Gross Salary | G1: Gratuaty | H1: ESI | I1: CTC
A2: 15000 | B2: =A2*35% -> 5250 | C2: =B2*50% -> 2625 | D2: 800 | F2: =SUM(B2:E2) -> 8675 | G2: =B2*4.84% -> 254.1 | H2: =IF(F2<15000,F2*1.75%,"") -> 151.8125 | I2: =SUM(F2:H2) -> 9080.9125
A3: 32000 | B3: =A3*35% -> 11200 | C3: =B3*50% -> 5600 | D3: 800 | F3: =SUM(B3:E3) -> 17600 | G3: =B3*4.84% -> 542.08 | H3: =IF(F3<15000,F3*1.75%,"") ->  | I3: =SUM(F3:H3) -> 18142.08
A4: 72928 | B4: =A4*35% -> 25524.8 | C4: =B4*50% -> 12762.4 | D4: 800 | F4: =SUM(B4:E4) -> 39087.2 | G4: =B4*4.84% -> 1235.40032 | I4: =SUM(F4:H4) -> 40322.60032
A5: 65714 | B5: 22999.9 | C5: 11499.95 | D5: 800 | F5: 35299.85 | G5: 1113.19516 | I5: 36413.04516
A6: 57209 | B6: 20023.15 | C6: 10011.575 | D6: 800 | F6: 30834.725 | G6: 969.12046 | I6: 31803.84546
A7: 35740 | B7: 12509 | C7: 6254.5 | D7: 800 | F7: 19563.5 | G7: 605.4356 | I7: 20168.9356
A8: 35313 | B8: 12359.55 | C8: 6179.775 | D8: 800 | F8: 19339.325 | G8: 598.20222 | I8: 19937.52722
A9: 50761 | B9: 17766.35 | C9: 8883.175 | D9: 800 | F9: 27449.525 | G9: 859.89134 | I9: 28309.41634
A10: 48745 | B10: 17060.75 | C10: 8530.375 | D10: 800 | F10: 26391.125 | G10: 825.7403 | I10: 27216.8653
A11: 44838 | B11: 15693.3 | C11: 7846.65 | D11: 800 | F11: 24339.95 | G11: 759.55572 | I11: 25099.50572
A12: 59021 | B12: 20657.35 | C12: 10328.675 | D12: 800 | F12: 31786.025 | G12: 999.81574 | I12: 32785.84074
A13: 55363 | B13: 19377.05 | C13: 9688.525 | D13: 800 | F13: 29865.575 | G13: 937.84922 | I13: 30803.42422
A14: 32428 | B14: 11349.8 | C14: 5674.9 | D14: 800 | F14: 17824.7 | G14: 549.33032 | I14: 18374.03032
A15: 53463 | B15: 18712.05 | C15: 9356.025 | D15: 800 | F15: 28868.075 | G15: 905.66322 | I15: 29773.73822

Sheet Sheet1
B5: 25 | C5: 30 | D5: 52 | E5: 60 | G5: =AVERAGE(B5:F5) -> 41.75
